[Event "Titled Tuesday Blitz December 20 Late 2022"]
[White "Marchesich, Giovanni"]
[Black "Poltorak, Sebastian"]
[WhiteFideId "2824790"]
[BlackFideId "1199498"]
[WhiteElo "2200"]
[BlackElo "2195"]
[Result "0-1"]
[Round "03"]
[TimeControl "180+1"]
[Date "2022.12.21"]
[WhiteClock "0:00:03"]
[BlackClock "0:00:07"]

1. Nc3 {[%clk 0:03:00]}  c5 {[%clk 0:02:58]} 2. Nf3 {[%clk 0:02:55]}  Nc6 {[%clk 0:02:58]} 3. e4 {[%clk 0:02:54]}  e5 {[%clk 0:02:44]} 4. Bc4 {[%clk 0:02:53]}  Be7 {[%clk 0:02:43]} 5. d3 {[%clk 0:02:53]}  Nf6 {[%clk 0:02:42]} 6. Nd2 {[%clk 0:02:53]}  O-O {[%clk 0:02:38]} 7. Nf1 {[%clk 0:02:53]}  d6 {[%clk 0:02:35]} 8. Ne3 {[%clk 0:02:54]}  Be6 {[%clk 0:02:31]} 9. O-O {[%clk 0:02:54]}  Nd4 {[%clk 0:02:28]} 10. a4 {[%clk 0:02:52]}  Qd7 {[%clk 0:02:24]} 11. Ned5 {[%clk 0:02:51]}  h6 {[%clk 0:02:15]} 12. f4 {[%clk 0:02:51]}  exf4 {[%clk 0:02:14]} 13. Bxf4 {[%clk 0:02:51]}  Nxd5 {[%clk 0:02:11]} 14. Nxd5 {[%clk 0:02:48]}  Rae8 {[%clk 0:02:03]} 15. c3 {[%clk 0:02:47]}  Nc6 {[%clk 0:02:01]} 16. Qh5 {[%clk 0:02:27]}  Kh7 {[%clk 0:01:41]} 17. h3 {[%clk 0:02:09]}  Bd8 {[%clk 0:01:37]} 18. Rf2 {[%clk 0:02:02]}  b6 {[%clk 0:01:35]} 19. Raf1 {[%clk 0:01:59]}  Na5 {[%clk 0:01:35]} 20. Bb5 {[%clk 0:01:58]}  Nc6 {[%clk 0:01:34]} 21. Bc4 {[%clk 0:01:51]}  Rg8 {[%clk 0:01:23]} 22. Bh2 {[%clk 0:01:50]}  f6 {[%clk 0:01:18]} 23. Ne3 {[%clk 0:01:35]}  Bxc4 {[%clk 0:01:15]} 24. Nxc4 {[%clk 0:01:36]}  Ne5 {[%clk 0:01:15]} 25. Bxe5 {[%clk 0:01:28]}  dxe5 {[%clk 0:01:15]} 26. Rf3 {[%clk 0:01:24]}  g6 {[%clk 0:00:59]} 27. Qg4 {[%clk 0:01:15]}  Qxg4 {[%clk 0:00:56]} 28. hxg4 {[%clk 0:01:16]}  Kg7 {[%clk 0:00:54]} 29. Ne3 {[%clk 0:01:16]}  Re6 {[%clk 0:00:46]} 30. Nd5 {[%clk 0:01:16]}  Rf8 {[%clk 0:00:41]} 31. Rb1 {[%clk 0:00:58]}  Be7 {[%clk 0:00:38]} 32. c4 {[%clk 0:00:57]}  Kf7 {[%clk 0:00:31]} 33. Ra1 {[%clk 0:00:57]}  Rb8 {[%clk 0:00:30]} 34. Kf2 {[%clk 0:00:46]}  Rd6 {[%clk 0:00:24]} 35. Ke2 {[%clk 0:00:46]}  Ke6 {[%clk 0:00:22]} 36. Kd2 {[%clk 0:00:44]}  Rdd8 {[%clk 0:00:15]} 37. Kc2 {[%clk 0:00:45]}  Rh8 {[%clk 0:00:15]} 38. Rh1 {[%clk 0:00:44]}  Rbf8 {[%clk 0:00:14]} 39. Rfh3 {[%clk 0:00:39]}  h5 {[%clk 0:00:11]} 40. gxh5 {[%clk 0:00:39]}  g5 {[%clk 0:00:12]} 41. g4 {[%clk 0:00:37]}  Bd8 {[%clk 0:00:12]} 42. Rf3 {[%clk 0:00:37]}  Rf7 {[%clk 0:00:12]} 43. Rf5 {[%clk 0:00:37]}  Rh6 {[%clk 0:00:12]} 44. Rhf1 {[%clk 0:00:36]}  Rd7 {[%clk 0:00:12]} 45. Ra1 {[%clk 0:00:30]}  Rb7 {[%clk 0:00:11]} 46. Rf2 {[%clk 0:00:28]}  Rhh7 {[%clk 0:00:10]} 47. Kc3 {[%clk 0:00:28]}  a6 {[%clk 0:00:10]} 48. b4 {[%clk 0:00:26]}  Be7 {[%clk 0:00:08]} 49. Rb2 {[%clk 0:00:24]}  cxb4+ {[%clk 0:00:07]} 50. Nxb4 {[%clk 0:00:25]}  Bc5 {[%clk 0:00:08]} 51. Nc2 {[%clk 0:00:19]}  Rhd7 {[%clk 0:00:08]} 52. Rab1 {[%clk 0:00:18]}  Kd6 {[%clk 0:00:06]} 53. Kd2 {[%clk 0:00:17]}  Kc6 {[%clk 0:00:07]} 54. Ne3 {[%clk 0:00:16]}  Bxe3+ {[%clk 0:00:07]} 55. Kxe3 {[%clk 0:00:16]}  Rd6 {[%clk 0:00:08]} 56. Rh1 {[%clk 0:00:13]}  Rbd7 {[%clk 0:00:08]} 57. Rd2 {[%clk 0:00:12]}  Kc5 {[%clk 0:00:09]} 58. Rb1 {[%clk 0:00:08]}  Kc6 {[%clk 0:00:08]} 59. Ke2 {[%clk 0:00:08]}  Kc5 {[%clk 0:00:08]} 60. Rb3 {[%clk 0:00:07]}  Rb7 {[%clk 0:00:07]} 61. Kd1 {[%clk 0:00:07]}  Kd4 {[%clk 0:00:07]} 62. Ke2 {[%clk 0:00:06]}  Rdd7 {[%clk 0:00:07]} 63. Rb1 {[%clk 0:00:06]}  Rdc7 {[%clk 0:00:07]} 64. Rdb2 {[%clk 0:00:06]}  Kc5 {[%clk 0:00:05]} 65. a5 {[%clk 0:00:05]}  b5 {[%clk 0:00:05]} 66. cxb5 {[%clk 0:00:05]}  axb5 {[%clk 0:00:06]} 67. Rc2+ {[%clk 0:00:05]}  Kd4 {[%clk 0:00:06]} 68. Rxc7 {[%clk 0:00:05]}  Rxc7 {[%clk 0:00:07]} 69. Rb4+ {[%clk 0:00:02]}  Kc3 {[%clk 0:00:06]} 70. Rb2 {[%clk 0:00:03]}  Kxb2 {[%clk 0:00:06]} 71. Ke3 {[%clk 0:00:02]}  b4 {[%clk 0:00:06]} 72. h6 {[%clk 0:00:03]}  Ra7 {[%clk 0:00:07]} 73. Kd2 {[%clk 0:00:02]}  b3 {[%clk 0:00:07]} 74. d4 {[%clk 0:00:03]}  Ka2 {[%clk 0:00:07]} 75. d5 {[%clk 0:00:03]}  b2 {[%clk 0:00:07]} 0-1


[Site "https://www.chess.com"]

[Event "Titled Tuesday Blitz December 20 Late 2022"]
[White "Martinez Alcantara, Jose Eduardo"]
[Black "Novikova, Galina"]
[WhiteFideId "3805662"]
[BlackFideId "4157095"]
[WhiteElo "2707"]
[BlackElo "1953"]
[Result "1-0"]
[Round "03"]
[TimeControl "180+1"]
[Date "2022.12.21"]
[WhiteClock "0:01:40"]
[BlackClock "0:00:01"]

1. e4 {[%clk 0:02:58]}  e6 {[%clk 0:03:00]} 2. d4 {[%clk 0:02:57]}  d5 {[%clk 0:03:01]} 3. exd5 {[%clk 0:02:58]}  exd5 {[%clk 0:03:01]} 4. Nf3 {[%clk 0:02:59]}  Nc6 {[%clk 0:03:00]} 5. h3 {[%clk 0:02:59]}  Bf5 {[%clk 0:03:00]} 6. Nc3 {[%clk 0:02:58]}  Qd7 {[%clk 0:02:58]} 7. Bb5 {[%clk 0:02:57]}  f6 {[%clk 0:02:58]} 8. O-O {[%clk 0:02:56]}  O-O-O {[%clk 0:02:58]} 9. Ba4 {[%clk 0:02:46]}  g5 {[%clk 0:02:55]} 10. Re1 {[%clk 0:02:43]}  h5 {[%clk 0:02:52]} 11. Nh2 {[%clk 0:02:42]}  Kb8 {[%clk 0:02:46]} 12. Nf1 {[%clk 0:02:42]}  h4 {[%clk 0:02:44]} 13. Ne3 {[%clk 0:02:42]}  Be6 {[%clk 0:02:43]} 14. Ng4 {[%clk 0:02:33]}  Bxg4 {[%clk 0:02:40]} 15. hxg4 {[%clk 0:02:29]}  h3 {[%clk 0:02:32]} 16. g3 {[%clk 0:02:29]}  Nh6 {[%clk 0:02:29]} 17. Bxc6 {[%clk 0:02:15]}  Qxc6 {[%clk 0:02:25]} 18. Qf3 {[%clk 0:02:11]}  h2+ {[%clk 0:02:03]} 19. Kg2 {[%clk 0:02:06]}  Qd7 {[%clk 0:01:50]} 20. Qxf6 {[%clk 0:02:04]}  Bb4 {[%clk 0:01:28]} 21. Bxg5 {[%clk 0:02:01]}  Nxg4 {[%clk 0:01:21]} 22. Qf3 {[%clk 0:01:57]}  Rdf8 {[%clk 0:01:07]} 23. Bf4 {[%clk 0:01:56]}  Bd6 {[%clk 0:00:34]} 24. Ne2 {[%clk 0:01:49]}  Nf6 {[%clk 0:00:13]} 25. Kh1 {[%clk 0:01:48]}  Ne4 {[%clk 0:00:12]} 26. Qg2 {[%clk 0:01:48]}  Bxf4 {[%clk 0:00:11]} 27. Nxf4 {[%clk 0:01:49]}  Qg4 {[%clk 0:00:07]} 28. Re3 {[%clk 0:01:42]}  Rhg8 {[%clk 0:00:06]} 29. Rf3 {[%clk 0:01:39]}  Nd2 {[%clk 0:00:05]} 30. Re3 {[%clk 0:01:39]}  Ne4 {[%clk 0:00:06]} 31. Nd3 {[%clk 0:01:40]}  Qg5 {[%clk 0:00:02]} 32. Rae1 {[%clk 0:01:40]}  b6 {[%clk 0:00:01]} 33. a4 {[%clk 0:01:40]}  Nf6 {[%clk 0:00:01]} 34. a5 {[%clk 0:01:39]}  Ng4 {[%clk 0:00:02]} 35. R3e2 {[%clk 0:01:40]}  Qg6 {[%clk 0:00:01]} 36. a6 {[%clk 0:01:40]} 1-0


[Site "https://www.chess.com"]

[Event "Titled Tuesday Blitz December 20 Late 2022"]
[White "Mekhitarian, Krikor Sevag"]
[Black "Toncheva, Nadya"]
[WhiteFideId "2107660"]
[BlackFideId "2924056"]
[WhiteElo "2604"]
[BlackElo "2101"]
[Result "1-0"]
[Round "03"]
[TimeControl "180+1"]
[Date "2022.12.20"]
[WhiteClock "0:00:05"]
[BlackClock "0:00:04"]

1. Nf3 {[%clk 0:03:00]}  c5 {[%clk 0:02:59]} 2. c4 {[%clk 0:03:00]}  Nc6 {[%clk 0:03:00]} 3. Nc3 {[%clk 0:03:00]}  g6 {[%clk 0:03:00]} 4. g3 {[%clk 0:03:00]}  Bg7 {[%clk 0:03:00]} 5. Bg2 {[%clk 0:03:00]}  e6 {[%clk 0:03:01]} 6. h4 {[%clk 0:02:59]}  h6 {[%clk 0:02:58]} 7. d4 {[%clk 0:02:59]}  cxd4 {[%clk 0:02:51]} 8. Nb5 {[%clk 0:02:59]}  d6 {[%clk 0:02:46]} 9. Nfxd4 {[%clk 0:02:57]}  Nxd4 {[%clk 0:02:38]} 10. Nxd4 {[%clk 0:02:58]}  Ne7 {[%clk 0:02:19]} 11. O-O {[%clk 0:02:56]}  a6 {[%clk 0:02:18]} 12. b3 {[%clk 0:02:43]}  Qc7 {[%clk 0:02:13]} 13. Bb2 {[%clk 0:02:41]}  O-O {[%clk 0:02:12]} 14. Rc1 {[%clk 0:02:41]}  Nc6 {[%clk 0:02:04]} 15. Qd2 {[%clk 0:02:37]}  Kh7 {[%clk 0:01:58]} 16. Rfd1 {[%clk 0:02:26]}  Rd8 {[%clk 0:01:42]} 17. Nxc6 {[%clk 0:01:45]}  bxc6 {[%clk 0:01:42]} 18. Bxg7 {[%clk 0:01:42]}  Kxg7 {[%clk 0:01:42]} 19. Qc3+ {[%clk 0:01:35]}  Kg8 {[%clk 0:01:22]} 20. Qf6 {[%clk 0:01:34]}  Bb7 {[%clk 0:01:09]} 21. Rd3 {[%clk 0:01:32]}  Rd7 {[%clk 0:01:06]} 22. Rcd1 {[%clk 0:01:31]}  Qd8 {[%clk 0:01:06]} 23. Qf4 {[%clk 0:01:23]}  g5 {[%clk 0:00:50]} 24. hxg5 {[%clk 0:01:18]}  hxg5 {[%clk 0:00:50]} 25. Qd2 {[%clk 0:00:57]}  d5 {[%clk 0:00:45]} 26. e4 {[%clk 0:00:57]}  Qf6 {[%clk 0:00:38]} 27. exd5 {[%clk 0:00:53]}  cxd5 {[%clk 0:00:36]} 28. cxd5 {[%clk 0:00:53]}  exd5 {[%clk 0:00:35]} 29. Re1 {[%clk 0:00:35]}  Rad8 {[%clk 0:00:27]} 30. Rf3 {[%clk 0:00:35]}  Qg6 {[%clk 0:00:24]} 31. Re5 {[%clk 0:00:35]}  f6 {[%clk 0:00:23]} 32. Re6 {[%clk 0:00:35]}  Rd6 {[%clk 0:00:22]} 33. Rfxf6 {[%clk 0:00:33]}  Rxe6 {[%clk 0:00:22]} 34. Rxg6+ {[%clk 0:00:33]}  Rxg6 {[%clk 0:00:22]} 35. Qd4 {[%clk 0:00:30]}  Rdd6 {[%clk 0:00:20]} 36. Bh3 {[%clk 0:00:29]}  Bc6 {[%clk 0:00:18]} 37. Bf5 {[%clk 0:00:29]}  Rgf6 {[%clk 0:00:18]} 38. g4 {[%clk 0:00:28]}  Kf7 {[%clk 0:00:16]} 39. b4 {[%clk 0:00:23]}  Bd7 {[%clk 0:00:16]} 40. Qa7 {[%clk 0:00:21]}  Ke7 {[%clk 0:00:16]} 41. Qe3+ {[%clk 0:00:20]}  Kd8 {[%clk 0:00:15]} 42. Bxd7 {[%clk 0:00:17]}  Kxd7 {[%clk 0:00:15]} 43. Qa7+ {[%clk 0:00:15]}  Ke8 {[%clk 0:00:14]} 44. Qd4 {[%clk 0:00:15]}  Ke7 {[%clk 0:00:13]} 45. Kg2 {[%clk 0:00:13]}  Kf7 {[%clk 0:00:12]} 46. a3 {[%clk 0:00:13]}  Kg6 {[%clk 0:00:11]} 47. f3 {[%clk 0:00:12]}  Rfe6 {[%clk 0:00:11]} 48. a4 {[%clk 0:00:11]}  Kf7 {[%clk 0:00:11]} 49. b5 {[%clk 0:00:11]}  axb5 {[%clk 0:00:12]} 50. axb5 {[%clk 0:00:12]}  Re2+ {[%clk 0:00:07]} 51. Kg3 {[%clk 0:00:12]}  Ree6 {[%clk 0:00:08]} 52. b6 {[%clk 0:00:10]}  Rxb6 {[%clk 0:00:08]} 53. Qxd5 {[%clk 0:00:11]}  Kg6 {[%clk 0:00:06]} 54. Qf5+ {[%clk 0:00:11]}  Kh6 {[%clk 0:00:06]} 55. Qf8+ {[%clk 0:00:09]}  Kg6 {[%clk 0:00:06]} 56. Qg8+ {[%clk 0:00:10]}  Kf6 {[%clk 0:00:06]} 57. Qh7 {[%clk 0:00:09]}  Ke5 {[%clk 0:00:02]} 58. Qf5+ {[%clk 0:00:08]}  Kd4 {[%clk 0:00:03]} 59. Qxg5 {[%clk 0:00:09]}  Rg6 {[%clk 0:00:03]} 60. Qf4+ {[%clk 0:00:09]}  Kd5 {[%clk 0:00:03]} 61. Qf5+ {[%clk 0:00:09]}  Kd4 {[%clk 0:00:03]} 62. g5 {[%clk 0:00:08]}  Rbe6 {[%clk 0:00:03]} 63. Kg4 {[%clk 0:00:06]}  Kc4 {[%clk 0:00:03]} 64. f4 {[%clk 0:00:05]}  Kd4 {[%clk 0:00:04]} 65. Qc2 {[%clk 0:00:05]}  Kd5 {[%clk 0:00:04]} 66. f5 {[%clk 0:00:05]}  Re4+ {[%clk 0:00:04]} 67. Qxe4+ {[%clk 0:00:05]} 1-0


[Site "https://www.chess.com"]

[Event "Titled Tuesday Blitz December 20 Late 2022"]
[White "Mesa Cruz, Juan Carlos"]
[Black "Moksh Amit Doshi"]
[WhiteFideId "6423400"]
[BlackFideId "25064967"]
[WhiteElo "2059"]
[BlackElo "2297"]
[Result "0-1"]
[Round "03"]
[TimeControl "180+1"]
[Date "2022.12.21"]
[WhiteClock "0:00:09"]
[BlackClock "0:01:53"]

1. e4 {[%clk 0:03:00]}  d5 {[%clk 0:02:59]} 2. exd5 {[%clk 0:03:00]}  Nf6 {[%clk 0:02:59]} 3. d4 {[%clk 0:02:59]}  Bg4 {[%clk 0:02:59]} 4. Be2 {[%clk 0:02:59]}  Bxe2 {[%clk 0:02:59]} 5. Qxe2 {[%clk 0:02:58]}  Qxd5 {[%clk 0:03:00]} 6. Nf3 {[%clk 0:02:58]}  Nc6 {[%clk 0:03:00]} 7. Nc3 {[%clk 0:02:51]}  Qh5 {[%clk 0:02:58]} 8. Bf4 {[%clk 0:02:49]}  O-O-O {[%clk 0:02:56]} 9. O-O-O {[%clk 0:02:49]}  e6 {[%clk 0:02:52]} 10. h3 {[%clk 0:02:48]}  Bb4 {[%clk 0:02:52]} 11. Ne4 {[%clk 0:02:41]}  Qf5 {[%clk 0:02:46]} 12. Bxc7 {[%clk 0:01:02]}  Kxc7 {[%clk 0:02:41]} 13. Ng3 {[%clk 0:00:55]}  Qa5 {[%clk 0:02:37]} 14. Kb1 {[%clk 0:00:55]}  Kb8 {[%clk 0:02:33]} 15. c3 {[%clk 0:00:54]}  Bd6 {[%clk 0:02:33]} 16. Ne4 {[%clk 0:00:54]}  Qf5 {[%clk 0:02:31]} 17. Nd2 {[%clk 0:00:53]}  Bf4 {[%clk 0:02:29]} 18. g4 {[%clk 0:00:51]}  Qg6 {[%clk 0:02:29]} 19. Ka1 {[%clk 0:00:48]}  Bxd2 {[%clk 0:02:29]} 20. Nxd2 {[%clk 0:00:49]}  h5 {[%clk 0:02:28]} 21. f3 {[%clk 0:00:39]}  hxg4 {[%clk 0:02:27]} 22. hxg4 {[%clk 0:00:40]}  Nd5 {[%clk 0:02:24]} 23. Nc4 {[%clk 0:00:36]}  Qf6 {[%clk 0:02:22]} 24. Qg2 {[%clk 0:00:25]}  Qf4 {[%clk 0:02:14]} 25. Rde1 {[%clk 0:00:20]}  a6 {[%clk 0:02:13]} 26. Re4 {[%clk 0:00:19]}  Qc7 {[%clk 0:02:13]} 27. Rhe1 {[%clk 0:00:15]}  Rh2 {[%clk 0:02:05]} 28. Qf1 {[%clk 0:00:14]}  Na5 {[%clk 0:02:02]} 29. Ne5 {[%clk 0:00:12]}  Qb6 {[%clk 0:02:00]} 30. R4e2 {[%clk 0:00:12]}  Rxe2 {[%clk 0:01:59]} 31. Qxe2 {[%clk 0:00:12]}  Qc7 {[%clk 0:01:56]} 32. Qd2 {[%clk 0:00:11]}  Nc4 {[%clk 0:01:56]} 33. Nxc4 {[%clk 0:00:12]}  Qxc4 {[%clk 0:01:56]} 34. Re5 {[%clk 0:00:12]}  Qf1+ {[%clk 0:01:55]} 35. Re1 {[%clk 0:00:13]}  Qxf3 {[%clk 0:01:56]} 36. c4 {[%clk 0:00:13]}  Nf4 {[%clk 0:01:55]} 37. a3 {[%clk 0:00:12]}  Nd3 {[%clk 0:01:53]} 38. Re3 {[%clk 0:00:12]}  Qf1+ {[%clk 0:01:53]} 39. Ka2 {[%clk 0:00:10]}  Nc1+ {[%clk 0:01:54]} 40. Kb1 {[%clk 0:00:09]}  Nb3+ {[%clk 0:01:54]} 41. Qe1 {[%clk 0:00:09]}  Qxe1+ {[%clk 0:01:54]} 42. Rxe1 {[%clk 0:00:10]}  Nxd4 {[%clk 0:01:55]} 43. Rd1 {[%clk 0:00:09]}  Nc6 {[%clk 0:01:53]} 0-1


[Site "https://www.chess.com"]

[Event "Titled Tuesday Blitz December 20 Late 2022"]
[White "Mikhalsky, Vladimir"]
[Black "Goroshkov, Maksym"]
[WhiteFideId "14144352"]
[BlackFideId "14142716"]
[WhiteElo "2272"]
[BlackElo "2258"]
[Result "1-0"]
[Round "03"]
[TimeControl "180+1"]
[Date "2022.12.21"]
[WhiteClock "0:00:23"]
[BlackClock "0:00:03"]

1. d4 {[%clk 0:02:59]}  Nf6 {[%clk 0:02:58]} 2. c4 {[%clk 0:02:59]}  e5 {[%clk 0:02:57]} 3. dxe5 {[%clk 0:02:57]}  Ng4 {[%clk 0:02:57]} 4. e4 {[%clk 0:02:52]}  Nxe5 {[%clk 0:02:57]} 5. Nc3 {[%clk 0:02:50]}  Bb4 {[%clk 0:02:56]} 6. f4 {[%clk 0:02:47]}  Ng6 {[%clk 0:02:55]} 7. Nf3 {[%clk 0:02:45]}  O-O {[%clk 0:02:55]} 8. Qb3 {[%clk 0:02:28]}  Nc6 {[%clk 0:02:53]} 9. a3 {[%clk 0:02:28]}  Bc5 {[%clk 0:02:47]} 10. Qc2 {[%clk 0:02:22]}  a5 {[%clk 0:02:44]} 11. Bd3 {[%clk 0:02:10]}  Nh4 {[%clk 0:02:40]} 12. Nxh4 {[%clk 0:02:06]}  Qxh4+ {[%clk 0:02:41]} 13. g3 {[%clk 0:02:06]}  Qd8 {[%clk 0:02:37]} 14. e5 {[%clk 0:01:58]}  g6 {[%clk 0:02:36]} 15. Ne4 {[%clk 0:01:57]}  Be7 {[%clk 0:02:34]} 16. Be3 {[%clk 0:01:54]}  d6 {[%clk 0:02:26]} 17. exd6 {[%clk 0:01:54]}  cxd6 {[%clk 0:02:24]} 18. O-O {[%clk 0:01:53]}  d5 {[%clk 0:02:14]} 19. cxd5 {[%clk 0:01:51]}  Qxd5 {[%clk 0:02:15]} 20. Bc4 {[%clk 0:01:51]}  Qh5 {[%clk 0:02:12]} 21. Be2 {[%clk 0:01:49]}  Bg4 {[%clk 0:01:56]} 22. Bxg4 {[%clk 0:01:48]}  Qxg4 {[%clk 0:01:57]} 23. f5 {[%clk 0:01:48]}  Rac8 {[%clk 0:01:47]} 24. Qg2 {[%clk 0:01:39]}  gxf5 {[%clk 0:01:38]} 25. Nf2 {[%clk 0:01:39]}  Qe2 {[%clk 0:01:32]} 26. Bh6 {[%clk 0:01:38]}  Rfe8 {[%clk 0:01:26]} 27. Rae1 {[%clk 0:01:37]}  Qxb2 {[%clk 0:01:26]} 28. Qd5 {[%clk 0:01:32]}  Bf6 {[%clk 0:01:09]} 29. Qxf5 {[%clk 0:01:29]}  Bd4 {[%clk 0:01:09]} 30. Kh1 {[%clk 0:01:19]}  Bg7 {[%clk 0:00:25]} 31. Nd3 {[%clk 0:01:17]}  Qf6 {[%clk 0:00:13]} 32. Rxe8+ {[%clk 0:01:12]}  Rxe8 {[%clk 0:00:13]} 33. Qxf6 {[%clk 0:01:12]}  Bxf6 {[%clk 0:00:13]} 34. Rxf6 {[%clk 0:01:12]}  Re6 {[%clk 0:00:13]} 35. Bg5 {[%clk 0:01:09]}  b5 {[%clk 0:00:12]} 36. Nc5 {[%clk 0:01:08]}  Rxf6 {[%clk 0:00:11]} 37. Bxf6 {[%clk 0:01:09]}  b4 {[%clk 0:00:12]} 38. a4 {[%clk 0:01:08]}  h6 {[%clk 0:00:11]} 39. Kg2 {[%clk 0:01:07]}  Kh7 {[%clk 0:00:11]} 40. Kf3 {[%clk 0:01:07]}  Kg6 {[%clk 0:00:12]} 41. Bh8 {[%clk 0:01:07]}  Kf5 {[%clk 0:00:12]} 42. Ke3 {[%clk 0:01:05]}  Kg4 {[%clk 0:00:12]} 43. Kf2 {[%clk 0:01:03]}  Kh3 {[%clk 0:00:12]} 44. Kg1 {[%clk 0:01:03]}  Ne7 {[%clk 0:00:10]} 45. Nb3 {[%clk 0:01:03]}  Nc6 {[%clk 0:00:10]} 46. Bg7 {[%clk 0:01:02]}  h5 {[%clk 0:00:10]} 47. Bf6 {[%clk 0:01:02]}  Kg4 {[%clk 0:00:10]} 48. Kg2 {[%clk 0:01:02]}  Kf5 {[%clk 0:00:10]} 49. Bb2 {[%clk 0:01:01]}  Ke4 {[%clk 0:00:11]} 50. Kf2 {[%clk 0:00:59]}  Kd3 {[%clk 0:00:11]} 51. Bf6 {[%clk 0:00:59]}  Kc4 {[%clk 0:00:11]} 52. Nd2+ {[%clk 0:00:59]}  Kd3 {[%clk 0:00:11]} 53. Ke1 {[%clk 0:00:58]}  Kc2 {[%clk 0:00:12]} 54. Nc4 {[%clk 0:00:58]}  b3 {[%clk 0:00:12]} 55. Ne3+ {[%clk 0:00:53]}  Kd3 {[%clk 0:00:12]} 56. Kf2 {[%clk 0:00:52]}  Nd4 {[%clk 0:00:11]} 57. Nd1 {[%clk 0:00:49]}  Ne6 {[%clk 0:00:09]} 58. Nb2+ {[%clk 0:00:48]}  Kc2 {[%clk 0:00:09]} 59. Nc4 {[%clk 0:00:49]}  Nc5 {[%clk 0:00:09]} 60. Nxa5 {[%clk 0:00:48]}  Nxa4 {[%clk 0:00:09]} 61. Kf3 {[%clk 0:00:46]}  Nc3 {[%clk 0:00:08]} 62. Nc4 {[%clk 0:00:45]}  Nd5 {[%clk 0:00:07]} 63. Bd4 {[%clk 0:00:43]}  Kd3 {[%clk 0:00:07]} 64. Ba1 {[%clk 0:00:33]}  Kxc4 {[%clk 0:00:07]} 65. Ke4 {[%clk 0:00:33]}  Nc3+ {[%clk 0:00:04]} 66. Kf5 {[%clk 0:00:32]}  Ne2 {[%clk 0:00:04]} 67. Kg5 {[%clk 0:00:32]}  Kd3 {[%clk 0:00:04]} 68. Kxh5 {[%clk 0:00:31]}  Ke3 {[%clk 0:00:04]} 69. Kg4 {[%clk 0:00:30]}  Nd4 {[%clk 0:00:04]} 70. h4 {[%clk 0:00:29]}  f5+ {[%clk 0:00:04]} 71. Kg5 {[%clk 0:00:29]}  Ne2 {[%clk 0:00:04]} 72. h5 {[%clk 0:00:28]}  Nxg3 {[%clk 0:00:04]} 73. h6 {[%clk 0:00:28]}  f4 {[%clk 0:00:04]} 74. h7 {[%clk 0:00:28]}  f3 {[%clk 0:00:03]} 75. h8=Q {[%clk 0:00:28]}  f2 {[%clk 0:00:04]} 76. Qd4+ {[%clk 0:00:28]}  Kf3 {[%clk 0:00:05]} 77. Qd3+ {[%clk 0:00:27]}  Kg2 {[%clk 0:00:05]} 78. Be5 {[%clk 0:00:23]}  f1=Q {[%clk 0:00:02]} 79. Qxg3+ {[%clk 0:00:23]}  Kh1 {[%clk 0:00:03]} 80. Qh2# {[%clk 0:00:23]} 1-0


[Site "https://www.chess.com"]

[Event "Titled Tuesday Blitz December 20 Late 2022"]
[White "Milosevic, Milos"]
[Black "Indjic, Aleksandar"]
[WhiteFideId "964875"]
[BlackFideId "911925"]
[WhiteElo "2314"]
[BlackElo "2616"]
[Result "1/2-1/2"]
[Round "03"]
[TimeControl "180+1"]
[Date "2022.12.21"]
[WhiteClock "0:00:04"]
[BlackClock "0:00:20"]

1. d4 {[%clk 0:03:00]}  Nf6 {[%clk 0:02:58]} 2. Nc3 {[%clk 0:02:58]}  d5 {[%clk 0:02:58]} 3. Bf4 {[%clk 0:02:58]}  a6 {[%clk 0:02:57]} 4. e3 {[%clk 0:02:58]}  b5 {[%clk 0:02:57]} 5. Nf3 {[%clk 0:02:57]}  e6 {[%clk 0:02:55]} 6. Ne5 {[%clk 0:02:58]}  Bb7 {[%clk 0:02:53]} 7. g4 {[%clk 0:02:57]}  c5 {[%clk 0:02:53]} 8. g5 {[%clk 0:02:56]}  Nfd7 {[%clk 0:02:52]} 9. h4 {[%clk 0:02:56]}  Nxe5 {[%clk 0:02:52]} 10. Bxe5 {[%clk 0:02:56]}  Nc6 {[%clk 0:02:46]} 11. Bf4 {[%clk 0:02:50]}  Bd6 {[%clk 0:02:34]} 12. dxc5 {[%clk 0:02:41]}  Bxc5 {[%clk 0:02:25]} 13. Bg2 {[%clk 0:02:38]}  Bd6 {[%clk 0:02:17]} 14. h5 {[%clk 0:02:31]}  Qc7 {[%clk 0:02:07]} 15. Qg4 {[%clk 0:02:19]}  Ne5 {[%clk 0:02:03]} 16. Qg3 {[%clk 0:02:17]}  Nc4 {[%clk 0:02:00]} 17. O-O-O {[%clk 0:02:09]}  O-O-O {[%clk 0:01:58]} 18. Bxd6 {[%clk 0:01:49]}  Qxd6 {[%clk 0:01:50]} 19. Qxd6 {[%clk 0:01:45]}  Nxd6 {[%clk 0:01:50]} 20. Rh4 {[%clk 0:01:27]}  Kc7 {[%clk 0:01:33]} 21. a4 {[%clk 0:01:21]}  Bc6 {[%clk 0:01:31]} 22. axb5 {[%clk 0:01:10]}  axb5 {[%clk 0:01:32]} 23. b3 {[%clk 0:01:09]}  g6 {[%clk 0:01:32]} 24. Ne2 {[%clk 0:00:43]}  Nf5 {[%clk 0:01:30]} 25. Rh2 {[%clk 0:00:42]}  Kb6 {[%clk 0:01:24]} 26. Kb2 {[%clk 0:00:40]}  Ra8 {[%clk 0:01:23]} 27. Nd4 {[%clk 0:00:39]}  Nxd4 {[%clk 0:01:23]} 28. Rxd4 {[%clk 0:00:40]}  Rhe8 {[%clk 0:01:22]} 29. hxg6 {[%clk 0:00:36]}  hxg6 {[%clk 0:01:23]} 30. Rf4 {[%clk 0:00:35]}  Re7 {[%clk 0:01:23]} 31. Rh7 {[%clk 0:00:32]}  Be8 {[%clk 0:01:21]} 32. b4 {[%clk 0:00:24]}  Raa7 {[%clk 0:01:19]} 33. Rf6 {[%clk 0:00:19]}  Bc6 {[%clk 0:01:18]} 34. f4 {[%clk 0:00:15]}  Rad7 {[%clk 0:01:17]} 35. Bf1 {[%clk 0:00:11]}  d4 {[%clk 0:01:15]} 36. exd4 {[%clk 0:00:11]}  Be4 {[%clk 0:01:15]} 37. c3 {[%clk 0:00:09]}  Kc6 {[%clk 0:01:13]} 38. Rh2 {[%clk 0:00:06]}  Ra7 {[%clk 0:01:13]} 39. Bg2 {[%clk 0:00:07]}  Bxg2 {[%clk 0:01:11]} 40. Rxg2 {[%clk 0:00:08]}  Kd5 {[%clk 0:01:10]} 41. Re2 {[%clk 0:00:07]}  Kc4 {[%clk 0:00:58]} 42. Re5 {[%clk 0:00:07]}  Reb7 {[%clk 0:00:58]} 43. Rc5+ {[%clk 0:00:06]}  Kd3 {[%clk 0:00:58]} 44. d5 {[%clk 0:00:07]}  Ra8 {[%clk 0:00:43]} 45. dxe6 {[%clk 0:00:05]}  Rba7 {[%clk 0:00:44]} 46. Rd5+ {[%clk 0:00:05]}  Ke2 {[%clk 0:00:42]} 47. Re5+ {[%clk 0:00:05]}  Kd2 {[%clk 0:00:39]} 48. Rd5+ {[%clk 0:00:05]}  Ke3 {[%clk 0:00:37]} 49. Re5+ {[%clk 0:00:05]}  Kd3 {[%clk 0:00:34]} 50. Rd5+ {[%clk 0:00:05]}  Ke2 {[%clk 0:00:20]} 51. Re5+ {[%clk 0:00:04]}  Kd3 {[%clk 0:00:20]} 52. Rd5+ {[%clk 0:00:04]} 1/2-1/2


[Site "https://www.chess.com"]